{"text_format":"1","workbook":"xlsx","n_sheets":4,"sheets":["Лист1","Лис т2","Лист3","Лист4"],"not_rendered":{"charts":0,"images":2,"macros":1,"external_links":0,"defined_names":8,"comments":0,"pivot_tables":0},"unopened":[],"bounds":{"document_bytes":16777216,"sheet_cells":100000,"rows_first":2000,"rows_last":500,"rows_between":2000,"halvings":0,"cell_chars":16384,"cell_head_chars":4096},"cells_cut":0,"cells_raw":0,"read":"whole","date_system":"1900"}

{"sheet":"Лист1","index":0,"n_rows":29,"n_cols":13,"rows_kept":29,"cut":false,"hidden":false,"merged":[]}
[{"$f":"INDEX(йй,2)","v":117},{"$f":"INDEX(цц,2)","v":145}]
[]
[]
[]
[null,null,null,null,null,null,null,null,null,null,34,94,142]
[null,null,null,null,null,null,null,null,null,null,63,195,91]
[null,null,null,null,null,null,null,null,null,null,14,17,160]
[null,null,null,null,null,null,null,null,null,null,166,19,34]
[null,null,null,null,null,134,null,null,null,null,192,159,57]
[null,null,null,null,null,145,null,null,null,null,38,73,101]
[null,null,null,null,null,124]
[null,null,null,null,null,166]
[null,null,null,null,null,55]
[null,null,null,null,null,16]
[null,null,null,null,null,78]
[null,null,null,null,null,123]
[null,null,null,null,null,173]
[null,null,null,null,null,46]
[null,null,null,null,null,81]
[null,null,null,null,null,28]
[null,null,null,null,null,143]
[null,null,null,null,null,48]
[null,null,null,null,null,20]
[null,null,null,null,null,35]
[null,null,null,null,null,39]
[null,null,null,null,null,91]
[null,null,null,null,null,197]
[null,null,null,null,null,33]
[null,null,null,null,null,101]

{"sheet":"Лис т2","index":1,"n_rows":29,"n_cols":11,"rows_kept":29,"cut":false,"hidden":false,"merged":[]}
[{"$f":"INDEX(йй,2)","v":117},{"$f":"INDEX(цц,2)","v":117}]
[]
[null,null,null,null,null,null,null,null,null,null,{"$f":"CELL(\"адрес\")","v":"$C$9"}]
[]
[]
[]
[]
[]
[null,null,null,null,null,{"$f":"RANDBETWEEN(1,200)","v":65},null,null,{"$f":"RANDBETWEEN(1,200)","v":36}]
[null,null,null,null,null,{"$f":"RANDBETWEEN(1,200)","v":117},null,null,{"$f":"RANDBETWEEN(1,200)","v":94}]
[null,null,null,null,null,102,null,null,76]
[null,null,null,null,null,31,null,null,59]
[null,null,null,null,null,96,null,null,158]
[null,null,null,null,null,56,null,null,19]
[null,null,null,null,null,42,null,null,197]
[null,null,null,null,null,171,null,null,67]
[null,null,null,null,null,74,null,null,44]
[null,null,null,null,null,61,null,null,189]
[null,null,null,null,null,15,null,null,175]
[null,null,null,null,null,49,null,null,165]
[null,null,null,null,null,20,null,null,188]
[null,null,null,null,null,160]
[null,null,null,null,null,56]
[null,null,null,null,null,147]
[null,null,null,null,null,164]
[null,null,null,null,null,162]
[null,null,null,null,null,38]
[null,null,null,null,null,2]
[null,null,null,null,null,74]

{"sheet":"Лист3","index":2,"n_rows":28,"n_cols":13,"rows_kept":28,"cut":false,"hidden":false,"merged":[]}
[]
[]
[]
[]
[null,null,null,null,null,null,null,null,null,null,36,58,72]
[null,null,null,null,null,null,null,null,null,null,23,194,121]
[null,null,null,null,null,null,null,null,null,null,90,196,161]
[null,null,null,null,null,null,null,100,null,null,66,19,16]
[null,null,null,null,null,null,null,108,null,null,95,42,26]
[null,null,null,null,null,null,null,139,null,null,199,61,37]
[null,null,null,null,null,null,null,140]
[null,null,null,null,null,null,null,41]
[null,null,null,null,null,null,null,50]
[null,null,null,null,null,null,null,173]
[null,null,null,null,null,null,null,24]
[null,null,null,null,null,null,null,113]
[null,null,null,null,null,null,null,49]
[null,null,null,null,null,null,null,81]
[null,null,null,null,null,null,null,124]
[null,null,null,null,null,null,null,174]
[null,null,null,null,null,null,null,28]
[null,null,null,null,null,null,null,29]
[null,null,null,null,null,null,null,58]
[null,null,null,null,null,null,null,133]
[null,null,null,null,null,null,null,131]
[null,null,null,null,null,null,null,83]
[null,null,null,null,null,null,null,100]
[null,null,null,null,null,null,null,85]

{"sheet":"Лист4","index":3,"n_rows":25,"n_cols":13,"rows_kept":25,"cut":false,"hidden":false,"merged":[]}
[]
[]
[]
[]
[]
[]
[]
[]
[]
[]
[]
[]
[]
[]
[]
[]
[]
[]
[]
[null,null,null,null,null,null,null,null,null,null,null,null,{"$f":"RANDBETWEEN(1,200)","v":125}]
[null,null,null,null,null,null,null,null,null,null,null,null,80]
[null,null,null,null,null,null,null,null,null,null,null,null,83]
[null,null,null,null,null,null,null,null,null,null,null,null,125]
[null,null,null,null,null,null,null,null,null,null,null,null,181]
[null,null,null,null,null,null,null,null,null,null,null,null,25]